fUST/lending_fUST_20250719
["ID","MTS","AMOUNT","RATE_DAILY","PERIOD"]
[373163491,1752888664218,-5000.0,0.00019178,2]
[373163493,1752888664227,-170.819959,0.00019178,2]
[373163495,1752888664237,-151.0,0.00019186,2]
[373163497,1752888664246,-151.0,0.00019186,2]
[373163499,1752888664255,-151.0,0.00019186,2]
[373163501,1752888664265,-261.984891,0.00019186,2]
[373163503,1752888664274,-261.984891,0.00019186,2]
[373163505,1752888664284,-151.0,0.00019186,2]
[373163507,1752888664293,-800.0,0.00019186,2]
[373163510,1752888664302,-302.84859387,0.00019278,2]
[373163512,1752888664312,-2458.40657255,0.00019383,2]
[373163514,1752888664322,-618.97160078,0.00019409,2]
[373163516,1752888664332,-501.04531724,0.00019409,2]
[373163518,1752888664342,-500.0,0.00019409,2]
[373163520,1752888664352,-501.51906247,0.00019409,2]
[373163522,1752888664362,-500.0,0.00019409,2]
[373163524,1752888664372,-500.0,0.00019412,2]
[373163526,1752888664381,-500.0,0.00019437,2]
[373163528,1752888664395,-460.0,0.00019452,2]
[373163530,1752888664404,-460.0,0.00019452,2]
[373163532,1752888664414,-460.0,0.00019452,2]
[373163534,1752888664424,-652.09,0.00019452,2]
[373163536,1752888664434,-460.0,0.00019452,2]
[373163538,1752888664443,-460.0,0.00019452,2]
[373163540,1752888664452,-460.0,0.00019452,2]
[373163542,1752888664462,-460.0,0.00019452,2]
[373163544,1752888664471,-460.0,0.00019452,2]
[373163546,1752888664480,-460.0,0.00019452,2]
[373163548,1752888664490,-589.82108252,0.00019452,2]
[373163550,1752888664500,-460.0,0.00019452,2]
[373163553,1752888664510,-460.0,0.00019452,2]
[373163555,1752888664520,-350.91105287,0.00019452,2]
[373163557,1752888664529,-616.11,0.00019452,2]
[373163559,1752888664538,-470.53,0.00019452,2]
[373163560,1752888664547,-460.0,0.00019452,2]
[373163562,1752888664556,-460.0,0.00019452,2]
[373163565,1752888664567,-460.0,0.00019452,2]
[373163566,1752888664577,-263.88984107,0.00019452,2]
[373163568,1752888664589,-460.0,0.00019452,2]
[373163571,1752888664599,-476.76,0.00019452,2]
[373163573,1752888664610,-460.0,0.00019452,2]
[373163574,1752888664619,-460.0,0.00019452,2]
[373163577,1752888664629,-460.0,0.00019452,2]
[373163579,1752888664640,-1523.25,0.00019452,2]
[373163580,1752888664650,-460.0,0.00019452,2]
[373163583,1752888664659,-460.0,0.00019452,2]
[373163585,1752888664669,-460.0,0.00019452,2]
[373163586,1752888664678,-460.0,0.00019452,2]
[373163589,1752888664689,-337.36795833,0.00019452,2]
[373163590,1752888664699,-460.0,0.00019452,2]
[373163593,1752888664709,-460.0,0.00019452,2]
[373163595,1752888664718,-460.0,0.00019452,2]
[373163597,1752888664727,-460.0,0.00019452,2]
[373163599,1752888664737,-460.0,0.00019452,2]
[373163601,1752888664747,-460.0,0.00019452,2]
[373163603,1752888664757,-1897.5,0.00019452,2]
[373163605,1752888664766,-311.5081473,0.00019452,2]
[373163607,1752888664775,-3678.91,0.00019452,2]
[373163609,1752888664785,-460.0,0.00019452,2]
[373163611,1752888664795,-493.57,0.00019452,2]
[373163613,1752888664804,-460.0,0.00019452,2]
[373163616,1752888664828,-460.0,0.00019452,2]
[373163618,1752888664837,-460.0,0.00019452,2]
[373163620,1752888664846,-460.0,0.00019452,2]
[373163622,1752888664856,-460.0,0.00019452,2]
[373163624,1752888664865,-605.61,0.00019452,2]
[373163625,1752888664874,-460.0,0.00019452,2]
[373163627,1752888664884,-2805.46,0.00019452,2]
[373163629,1752888664893,-460.0,0.00019452,2]
[373163631,1752888664903,-460.0,0.00019452,2]
[373163634,1752888664913,-460.0,0.00019452,2]
[373163636,1752888664922,-1185.41,0.00019452,2]
[373163638,1752888664932,-691.63,0.00019452,2]
[373163640,1752888664942,-460.0,0.00019452,2]
[373163642,1752888664951,-1315.47,0.00019452,2]
[373163644,1752888664960,-538.75,0.00019452,2]
[373163646,1752888664971,-678.93,0.00019452,2]
[373163648,1752888664981,-572.1,0.00019452,2]
[373163650,1752888664991,-460.0,0.00019452,2]
[373163652,1752888665000,-487.86,0.00019452,2]
[373163654,1752888665009,-460.0,0.00019452,2]
[373163656,1752888665020,-2469.79,0.00019452,2]
[373163658,1752888665030,-460.0,0.00019452,2]
[373163660,1752888665040,-866.43,0.00019452,2]
[373163662,1752888665049,-460.0,0.00019452,2]
[373163664,1752888665058,-321.89590179,0.00019452,2]
[373163666,1752888665067,-460.0,0.00019452,2]
[373163668,1752888665078,-169.4511721,0.00019452,2]
[373163670,1752888665087,-2180.67,0.00019452,2]
[373163672,1752888665096,-533.79,0.00019452,2]
[373163674,1752888665107,-460.0,0.00019452,2]
[373163676,1752888665117,-778.56,0.00019452,2]
[373163678,1752888665127,-3993.72,0.00019452,2]
[373163680,1752888665137,-460.0,0.00019452,2]
[373163682,1752888665150,-460.0,0.00019452,2]
[373163684,1752888665159,-552.69787818,0.00019452,2]
[373163686,1752888665169,-460.0,0.00019452,2]
[373163688,1752888665178,-460.0,0.00019452,2]
[373163690,1752888665189,-612.61,0.00019452,2]
[373163692,1752888665199,-460.0,0.00019452,2]
[373163693,1752888665208,-460.0,0.00019452,2]
[373163694,1752888665217,-474.93,0.00019452,2]
[373163695,1752888665227,-1465.45,0.00019452,2]
[373163696,1752888665236,-521.28,0.00019452,2]
[373163697,1752888665245,-1247.56,0.00019452,2]
[373163698,1752888665254,-460.0,0.00019452,2]
[373163699,1752888665263,-684.21,0.00019452,2]
[373163700,1752888665272,-1826.47,0.00019452,2]
[373163701,1752888665282,-1608.52,0.00019452,2]
[373163702,1752888665291,-517.7,0.00019452,2]
[373163703,1752888665300,-508.9,0.00019452,2]
[373163705,1752888665309,-604.13,0.00019452,2]
[373163706,1752888665319,-460.0,0.00019452,2]
[373163708,1752888665329,-460.0,0.00019452,2]
[373163710,1752888665339,-460.0,0.00019452,2]
[373163712,1752888665348,-460.0,0.00019452,2]
[373163714,1752888665357,-460.0,0.00019452,2]
[373163716,1752888665367,-931.99,0.00019452,2]
[373163718,1752888665376,-460.0,0.00019452,2]
[373163720,1752888665387,-1663.36,0.00019452,2]
[373163722,1752888665398,-460.0,0.00019452,2]
[373163724,1752888665408,-152.78713983,0.00019467,2]
[373163726,1752888665417,-2351.0,0.00019618,2]
[373163728,1752888665427,-587.0,0.00019619,2]
[373163730,1752888665436,-560.0,0.00019639,2]
[373163732,1752888665445,-2458.40657255,0.00019659,2]
[373163734,1752888665455,-460.0,0.00019726,2]
[373163736,1752888665464,-151.0,0.00019726,2]
[373163738,1752888665473,-460.0,0.00019726,2]
[373163740,1752888665482,-460.0,0.00019726,2]
[373163742,1752888665491,-652.09,0.00019726,2]
[373163744,1752888665500,-460.0,0.00019726,2]
[373163746,1752888665509,-460.0,0.00019726,2]
[373163748,1752888665519,-460.0,0.00019726,2]
[373163750,1752888665528,-230.3667825,0.00019726,2]
[373163752,1752888665537,-557.15,0.00019726,2]
[373163754,1752888665546,-460.0,0.00019726,2]
[373163756,1752888665556,-460.0,0.00019726,2]
[373163758,1752888665565,-460.0,0.00019726,2]
[373163760,1752888665575,-616.11,0.00019726,2]
[373163762,1752888665584,-470.53,0.00019726,2]
[373163764,1752888665594,-460.0,0.00019726,2]
[373163766,1752888665603,-460.0,0.00019726,2]
[373163768,1752888665612,-460.0,0.00019726,2]
[373163770,1752888665621,-151.0,0.00019726,2]
[373163772,1752888665631,-151.0,0.00019726,2]
[373163774,1752888665641,-151.0,0.00019726,2]
[373163776,1752888665650,-151.0,0.00019726,2]
[373163778,1752888665659,-460.0,0.00019726,2]
[373163780,1752888665669,-476.76,0.00019726,2]
[373163782,1752888665678,-460.0,0.00019726,2]
[373163784,1752888665687,-460.0,0.00019726,2]
[373163786,1752888665697,-286.94368822,0.00019726,2]
[373163788,1752888665706,-1523.25,0.00019726,2]
[373163790,1752888665716,-460.0,0.00019726,2]
[373163792,1752888665725,-441.09735334,0.00019726,2]
[373163794,1752888665734,-582.41255191,0.00019726,2]
[373163796,1752888665744,-460.0,0.00019726,2]
[373163798,1752888665753,-460.0,0.00019726,2]
[373163800,1752888665762,-493.82104014,0.00019726,2]
[373163801,1752888665771,-460.0,0.00019726,2]
[373163804,1752888665781,-460.0,0.00019726,2]
[373163806,1752888665790,-460.0,0.00019726,2]
[373163807,1752888665800,-460.0,0.00019726,2]
[373163809,1752888665809,-1897.5,0.00019726,2]
[373163811,1752888665819,-3678.91,0.00019726,2]
[373163814,1752888665829,-460.0,0.00019726,2]
[373163816,1752888665838,-493.57,0.00019726,2]
[373163817,1752888665847,-460.0,0.00019726,2]
[373163819,1752888665857,-460.0,0.00019726,2]
[373163821,1752888665867,-460.0,0.00019726,2]
[373163823,1752888665876,-460.0,0.00019726,2]
[373163826,1752888665887,-460.0,0.00019726,2]
[373163827,1752888665896,-605.61,0.00019726,2]
[373163829,1752888665906,-460.0,0.00019726,2]
[373163831,1752888665915,-2805.46,0.00019726,2]
[373163833,1752888665925,-460.0,0.00019726,2]
[373163836,1752888665935,-460.0,0.00019726,2]
[373163838,1752888665945,-460.0,0.00019726,2]
[373163840,1752888665954,-1185.41,0.00019726,2]
[373163841,1752888665964,-691.63,0.00019726,2]
[373163843,1752888665973,-460.0,0.00019726,2]
[373163845,1752888665983,-1315.47,0.00019726,2]
[373163848,1752888665994,-538.75,0.00019726,2]
[373163850,1752888666004,-678.93,0.00019726,2]
[373163852,1752888666014,-572.1,0.00019726,2]
[373163854,1752888666024,-460.0,0.00019726,2]
[373163855,1752888666034,-487.86,0.00019726,2]
[373163858,1752888666046,-460.0,0.00019726,2]
[373163859,1752888666057,-2469.79,0.00019726,2]
[373163862,1752888666068,-460.0,0.00019726,2]
[373163864,1752888666078,-866.43,0.00019726,2]
[373163865,1752888666087,-460.0,0.00019726,2]
[373163867,1752888666097,-460.0,0.00019726,2]
[373163869,1752888666107,-2180.67,0.00019726,2]
[373163872,1752888666118,-533.79,0.00019726,2]
[373163873,1752888666128,-460.0,0.00019726,2]
[373163876,1752888666142,-778.56,0.00019726,2]
[373163877,1752888666151,-3993.72,0.00019726,2]
[373163880,1752888666162,-460.0,0.00019726,2]
[373163881,1752888666172,-239.90239947,0.00019726,2]
[373163883,1752888666182,-151.0,0.00019726,2]
[373163885,1752888666192,-460.0,0.00019726,2]
[373163887,1752888666201,-460.0,0.00019726,2]
[373163889,1752888666211,-612.61,0.00019726,2]
[373163891,1752888666223,-151.0,0.00019726,2]
[373163894,1752888666233,-460.0,0.00019726,2]
[373163895,1752888666242,-460.0,0.00019726,2]
[373163897,1752888666252,-474.93,0.00019726,2]
[373163899,1752888666262,-1465.45,0.00019726,2]
[373163901,1752888666271,-521.28,0.00019726,2]
[373163903,1752888666280,-1247.56,0.00019726,2]
[373163905,1752888666289,-460.0,0.00019726,2]
[373163907,1752888666298,-684.21,0.00019726,2]
[373163909,1752888666308,-1826.47,0.00019726,2]
[373163911,1752888666318,-1608.52,0.00019726,2]
[373163913,1752888666328,-517.7,0.00019726,2]
[373163915,1752888666338,-151.0,0.00019726,2]
[373163917,1752888666348,-508.9,0.00019726,2]
[373163920,1752888666359,-176.845494,0.00019726,2]
[373163921,1752888666368,-604.13,0.00019726,2]
[373163924,1752888666378,-460.0,0.00019726,2]
[373163925,1752888666389,-159.61854329,0.00019726,2]
[373163927,1752888666398,-460.0,0.00019726,2]
[373163929,1752888666407,-460.0,0.00019726,2]
[373163931,1752888666417,-460.0,0.00019726,2]
[373163933,1752888666426,-931.99,0.00019726,2]
[373163935,1752888666436,-460.0,0.00019726,2]
[373163937,1752888666445,-1663.36,0.00019726,2]
[373163939,1752888666454,-460.0,0.00019726,2]
[373163941,1752888666464,-305.26285468,0.00019732,2]
[373163943,1752888666473,-170.16000748,0.00019732,2]
[373163945,1752888666482,-150.39478184,0.00019732,2]
[373163947,1752888666491,-500.0,0.00019876,2]
[373163949,1752888666501,-500.0,0.00019876,2]
[373163951,1752888666510,-6633.10164863,0.00019889,2]
[373163953,1752888666519,-2458.40657255,0.00019934,2]
[373163955,1752888666530,-2156.0,0.00019939,2]
[373163957,1752888666539,-968.0,0.00019939,2]
[373163959,1752888666549,-407.0,0.00019939,2]
[373163961,1752888666559,-503.40908628,0.00019957,2]
[373163963,1752888666569,-501.15015757,0.00019957,2]
[373163965,1752888666579,-1000.0,0.0001996,2]
[373163967,1752888666589,-1000.0,0.00019985,2]
[373163969,1752888666599,-47892.47257662,0.00019989,2]
[373163971,1752888666609,-460.0,0.0002,2]
[373163973,1752888666619,-460.0,0.0002,2]
[373163975,1752888666628,-460.0,0.0002,2]
[373163977,1752888666639,-652.09,0.0002,2]
[373163979,1752888666649,-460.0,0.0002,2]
[373163981,1752888666659,-477.22802226,0.0002,2]
[373163983,1752888666668,-460.0,0.0002,2]
[373163985,1752888666677,-460.0,0.0002,2]
[373163987,1752888666689,-616.11,0.0002,2]
[373163989,1752888666700,-470.53,0.0002,2]
[373163991,1752888666711,-460.0,0.0002,2]
[373164004,1752888666830,-151.0,0.0002,2]
[373164006,1752888666840,-151.0,0.0002,2]
[373164007,1752888666849,-460.0,0.0002,2]
[373164009,1752888666859,-460.0,0.0002,2]
[373164011,1752888666869,-151.0,0.0002,2]
[373164013,1752888666878,-151.0,0.0002,2]
[373164016,1752888666889,-151.0,0.0002,2]
[373164017,1752888666898,-151.0,0.0002,2]
[373164019,1752888666908,-460.0,0.0002,2]
[373164022,1752888666918,-476.76,0.0002,2]
[373164023,1752888666927,-460.0,0.0002,2]
[373164025,1752888666936,-460.0,0.0002,2]
[373164027,1752888666946,-1523.25,0.0002,2]
[373164029,1752888666955,-182.57,0.0002,2]
[373164031,1752888666964,-460.0,0.0002,2]
[373164033,1752888666974,-460.0,0.0002,2]
[373164035,1752888666983,-460.0,0.0002,2]
[373164036,1752888666993,-460.0,0.0002,2]
[373164038,1752888667002,-460.0,0.0002,2]
[373164040,1752888667012,-460.0,0.0002,2]
[373164042,1752888667022,-1897.5,0.0002,2]
[373164044,1752888667033,-3678.91,0.0002,2]
[373164046,1752888667042,-460.0,0.0002,2]
[373164048,1752888667052,-493.57,0.0002,2]
[373164050,1752888667062,-460.0,0.0002,2]
[373164052,1752888667071,-460.0,0.0002,2]
[373164054,1752888667080,-460.0,0.0002,2]
[373164056,1752888667090,-151.0,0.0002,2]
[373164058,1752888667099,-460.0,0.0002,2]
[373164059,1752888667108,-460.0,0.0002,2]
[373164061,1752888667118,-605.61,0.0002,2]
[373164063,1752888667127,-460.0,0.0002,2]
[373164065,1752888667139,-2805.46,0.0002,2]
[373164067,1752888667151,-460.0,0.0002,2]
[373164070,1752888667161,-460.0,0.0002,2]
[373164071,1752888667170,-460.0,0.0002,2]
[373164073,1752888667180,-1185.41,0.0002,2]
[373164075,1752888667191,-691.63,0.0002,2]
[373164077,1752888667200,-460.0,0.0002,2]
[373164079,1752888667210,-1315.47,0.0002,2]
[373164081,1752888667219,-538.75,0.0002,2]
[373164083,1752888667231,-678.93,0.0002,2]
[373164085,1752888667240,-572.1,0.0002,2]
[373164087,1752888667249,-460.0,0.0002,2]
[373164089,1752888667259,-487.86,0.0002,2]
[373164091,1752888667268,-460.0,0.0002,2]
[373164093,1752888667278,-2469.79,0.0002,2]
[373164095,1752888667287,-460.0,0.0002,2]
[373164097,1752888667297,-866.43,0.0002,2]
[373164099,1752888667307,-460.0,0.0002,2]
[373164101,1752888667316,-460.0,0.0002,2]
[373164103,1752888667325,-151.0,0.0002,2]
[373164105,1752888667335,-2180.67,0.0002,2]
[373164107,1752888667344,-533.79,0.0002,2]
[373164109,1752888667354,-460.0,0.0002,2]
[373164111,1752888667363,-778.56,0.0002,2]
[373164113,1752888667374,-460.0,0.0002,2]
[373164115,1752888667383,-3993.72,0.0002,2]
[373164117,1752888667394,-460.0,0.0002,2]
[373164119,1752888667403,-460.0,0.0002,2]
[373164121,1752888667413,-460.0,0.0002,2]
[373164123,1752888667422,-612.61,0.0002,2]
[373164125,1752888667431,-460.0,0.0002,2]
[373164127,1752888667440,-474.93,0.0002,2]
[373164129,1752888667450,-1465.45,0.0002,2]
[373164131,1752888667459,-521.28,0.0002,2]
[373164132,1752888667469,-1247.56,0.0002,2]
[373164133,1752888667478,-460.0,0.0002,2]
[373164134,1752888667488,-684.21,0.0002,2]
[373164135,1752888667497,-1826.47,0.0002,2]
[373164136,1752888667506,-1608.52,0.0002,2]
[373164137,1752888667516,-517.7,0.0002,2]
[373164138,1752888667526,-508.9,0.0002,2]
[373164139,1752888667535,-604.13,0.0002,2]
[373164140,1752888667545,-151.0,0.0002,2]
[373164141,1752888667555,-460.0,0.0002,2]
[373164142,1752888667564,-460.0,0.0002,2]
[373164143,1752888667573,-300.6123749,0.0002,2]
[373164144,1752888667583,-931.99,0.0002,2]
[373164145,1752888667593,-460.0,0.0002,2]
[373164146,1752888667602,-460.0,0.0002,2]
[373164147,1752888667612,-1663.36,0.0002,2]
[373164148,1752888667621,-460.0,0.0002,2]
[373164149,1752888667631,-207.4,0.00020024,2]
[373164150,1752888667642,-151.0,0.00020024,2]
[373164151,1752888667652,-151.0,0.00020024,2]
[373164152,1752888667662,-151.0,0.00020024,2]
[373164153,1752888667671,-151.0,0.00020024,2]
[373164154,1752888667681,-151.0,0.00020024,2]
[373164155,1752888667690,-151.0,0.00020024,2]
[373164156,1752888667700,-151.0,0.00020024,2]
[373164157,1752888667710,-151.0,0.00020024,2]
[373164158,1752888667720,-151.0,0.00020024,2]
[373164159,1752888667730,-151.0,0.00020024,2]
[373164160,1752888667740,-151.0,0.00020024,2]
[373164161,1752888667749,-151.0,0.00020024,2]
[373164162,1752888667759,-151.0,0.00020024,2]
[373164163,1752888667768,-151.0,0.00020024,2]
[373164164,1752888667778,-151.0,0.00020024,2]
[373164165,1752888667787,-3801.642,0.00020024,2]
[373164166,1752888667796,-151.0,0.00020024,2]
[373164167,1752888667805,-151.0,0.00020024,2]
[373164169,1752888667815,-151.0,0.00020024,2]
[373164171,1752888667825,-151.0,0.00020024,2]
[373164173,1752888667834,-151.0,0.00020024,2]
[373164175,1752888667843,-151.0,0.00020024,2]
[373164177,1752888667853,-151.0,0.00020024,2]
[373164179,1752888667862,-151.0,0.00020024,2]
[373164181,1752888667872,-151.0,0.00020024,2]
[373164183,1752888667881,-189.08578606,0.00020024,2]
[373164185,1752888667892,-151.0,0.00020024,2]
[373164187,1752888667902,-151.0,0.00020024,2]
[373164189,1752888667911,-151.0,0.00020024,2]
[373164191,1752888667921,-151.0,0.00020024,2]
[373164193,1752888667931,-151.0,0.00020024,2]
[373164195,1752888667941,-151.0,0.00020024,2]
[373164197,1752888667951,-151.0,0.00020024,2]
[373164199,1752888667960,-151.0,0.00020024,2]
[373164201,1752888667970,-151.0,0.00020024,2]
[373164203,1752888667980,-151.0,0.00020024,2]
[373164205,1752888667989,-151.0,0.00020024,2]
[373164207,1752888667998,-151.0,0.00020024,2]
[373164209,1752888668008,-151.0,0.00020024,2]
[373164211,1752888668017,-151.0,0.00020024,2]
[373164213,1752888668029,-151.0,0.00020024,2]
[373164215,1752888668038,-151.0,0.00020024,2]
[373164217,1752888668048,-151.0,0.00020024,2]
[373164219,1752888668057,-151.0,0.00020024,2]
[373164221,1752888668066,-151.0,0.00020024,2]
[373164223,1752888668075,-151.0,0.00020024,2]
[373164225,1752888668084,-151.0,0.00020024,2]
[373164227,1752888668094,-151.0,0.00020024,2]
[373164229,1752888668103,-151.0,0.00020024,2]
[373164231,1752888668113,-151.0,0.00020024,2]
[373164233,1752888668123,-151.0,0.00020024,2]
[373164235,1752888668133,-151.0,0.00020024,2]
[373164237,1752888668152,-151.0,0.00020024,2]
[373164239,1752888668161,-151.0,0.00020024,2]
[373164241,1752888668170,-25000.0,0.00020024,2]
[373164243,1752888668179,-151.0,0.00020024,2]
[373164245,1752888668189,-151.0,0.00020024,2]
[373164247,1752888668200,-151.0,0.00020024,2]
[373164249,1752888668209,-151.0,0.00020024,2]
[373164251,1752888668218,-151.0,0.00020024,2]
[373164253,1752888668227,-17697.64054306,0.00020024,2]
[373164255,1752888668236,-3942.302754,0.00020079,2]
[373164257,1752888668245,-2925.49066153,0.00020134,2]
[373164259,1752888668255,-660.0,0.00020187,2]
[373164261,1752888668265,-418.259719,0.00020187,2]
[373164263,1752888668275,-230.22634365,0.00020195,2]
[373164265,1752888668284,-2458.40657255,0.0002021,2]
[373164267,1752888668293,-151.27143199,0.00020273,2]
[373164269,1752888668303,-460.0,0.00020273,2]
[373164271,1752888668312,-460.0,0.00020273,2]
[373164273,1752888668321,-652.09,0.00020273,2]
[373164275,1752888668330,-460.0,0.00020273,2]
[373164277,1752888668339,-460.0,0.00020273,2]
[373164279,1752888668349,-460.0,0.00020273,2]
[373164281,1752888668358,-616.11,0.00020273,2]
[373164283,1752888668368,-470.53,0.00020273,2]
[373164285,1752888668377,-460.0,0.00020273,2]
[373164286,1752888668387,-460.0,0.00020273,2]
[373164288,1752888668399,-460.0,0.00020273,2]
[373164291,1752888668409,-555.02,0.00020273,2]
[373164293,1752888668419,-476.76,0.00020273,2]
[373164294,1752888668429,-460.0,0.00020273,2]
[373164296,1752888668438,-460.0,0.00020273,2]
[373164298,1752888668447,-1523.25,0.00020273,2]
[373164300,1752888668456,-460.0,0.00020273,2]
[373164302,1752888668466,-151.0,0.00020273,2]
[373164304,1752888668475,-460.0,0.00020273,2]
[373164306,1752888668484,-460.0,0.00020273,2]
[373164308,1752888668494,-460.0,0.00020273,2]
[373164310,1752888668503,-460.0,0.00020273,2]
[373164312,1752888668512,-460.0,0.00020273,2]
[373164314,1752888668522,-1897.5,0.00020273,2]
[373164316,1752888668531,-3678.91,0.00020273,2]
[373164318,1752888668541,-460.0,0.00020273,2]
[373164320,1752888668550,-493.57,0.00020273,2]
[373164322,1752888668559,-460.0,0.00020273,2]
[373164324,1752888668568,-460.0,0.00020273,2]
[373164326,1752888668578,-460.0,0.00020273,2]
[373164328,1752888668587,-460.0,0.00020273,2]
[373164330,1752888668597,-460.0,0.00020273,2]
[373164332,1752888668607,-605.61,0.00020273,2]
[373164334,1752888668616,-2805.46,0.00020273,2]
[373164336,1752888668625,-460.0,0.00020273,2]
[373164338,1752888668635,-460.0,0.00020273,2]
[373164340,1752888668647,-460.0,0.00020273,2]
[373164342,1752888668657,-1185.41,0.00020273,2]
[373164344,1752888668667,-691.63,0.00020273,2]
[373164347,1752888668676,-460.0,0.00020273,2]
[373164349,1752888668686,-1315.47,0.00020273,2]
[373164351,1752888668695,-538.75,0.00020273,2]
[373164353,1752888668704,-678.93,0.00020273,2]
[373164355,1752888668713,-572.1,0.00020273,2]
[373164357,1752888668723,-460.0,0.00020273,2]
[373164359,1752888668733,-487.86,0.00020273,2]
[373164361,1752888668742,-460.0,0.00020273,2]
[373164363,1752888668752,-460.0,0.00020273,2]
[373164365,1752888668762,-2469.79,0.00020273,2]
[373164367,1752888668772,-866.43,0.00020273,2]
[373164368,1752888668782,-460.0,0.00020273,2]
[373164370,1752888668793,-460.0,0.00020273,2]
[373164373,1752888668803,-151.0,0.00020273,2]
[373164374,1752888668812,-2180.67,0.00020273,2]
[373164377,1752888668828,-533.79,0.00020273,2]
[373164379,1752888668838,-460.0,0.00020273,2]
[373164381,1752888668848,-778.56,0.00020273,2]
[373164383,1752888668857,-460.0,0.00020273,2]
[373164384,1752888668866,-3993.72,0.00020273,2]
[373164386,1752888668876,-460.0,0.00020273,2]
[373164389,1752888668887,-460.0,0.00020273,2]
[373164390,1752888668898,-612.61,0.00020273,2]
[373164393,1752888668907,-460.0,0.00020273,2]
[373164395,1752888668917,-474.93,0.00020273,2]
[373164397,1752888668926,-1465.45,0.00020273,2]
[373164399,1752888668936,-521.28,0.00020273,2]
[373164400,1752888668945,-1247.56,0.00020273,2]
[373164402,1752888668954,-460.0,0.00020273,2]
[373164404,1752888668963,-684.21,0.00020273,2]
[373164407,1752888668973,-151.0,0.00020273,2]
[373164408,1752888668983,-1826.47,0.00020273,2]
[373164410,1752888668992,-151.0,0.00020273,2]
[373164412,1752888669002,-1608.52,0.00020273,2]
[373164414,1752888669011,-517.7,0.00020273,2]
[373164416,1752888669021,-508.9,0.00020273,2]
[373164418,1752888669032,-604.13,0.00020273,2]
[373164420,1752888669041,-179.94604781,0.00020273,2]
[373164422,1752888669051,-460.0,0.00020273,2]
[373164424,1752888669061,-931.99,0.00020273,2]
[373164426,1752888669070,-163.66966262,0.00020273,2]
[373164428,1752888669080,-460.0,0.00020273,2]
[373164430,1752888669090,-1663.36,0.00020273,2]
[373164432,1752888669099,-460.0,0.00020273,2]
[373164434,1752888669109,-800.0,0.00020282,2]
[373164436,1752888669118,-1365.71766208,0.00020314,3]
[373164438,1752888669128,-476.25663856,0.00020314,3]
[373164440,1752888669139,-214.4881157,0.00020314,3]
[373164442,1752888669152,-865.39224732,0.00020447,2]
[373164444,1752888669161,-2458.40657255,0.00020486,3]
[373164446,1752888669170,-6633.10164863,0.00020494,2]
[373164448,1752888669180,-446.854267,0.00020497,2]
[373164450,1752888669190,-1500.0,0.00020508,2]